fUST/lending_fUST_20251128
["ID","MTS","AMOUNT","RATE_DAILY","PERIOD"]
[395014426,1764330641152,-533.76416684,9.693e-05,2]
[395014427,1764330641161,-533.76416684,9.693e-05,2]
[395014428,1764330641170,-533.76416684,9.693e-05,2]
[395014429,1764330641180,-533.76416684,9.693e-05,2]
[395014430,1764330641190,-533.76416684,9.693e-05,2]
[395014431,1764330641199,-533.76416684,9.693e-05,2]
[395014432,1764330641209,-533.76416684,9.693e-05,2]
[395014433,1764330641218,-533.76416684,9.693e-05,2]
[395014434,1764330641227,-533.76416684,9.693e-05,2]
[395014435,1764330641235,-17729.62707386,9.694e-05,2]
[395014436,1764330641244,-20477.75318722,9.791e-05,2]
[395014492,1764330646572,-895.10725028,9.791e-05,2]
[395014494,1764330646585,-11759.14355233,9.791e-05,2]
[395014696,1764330663190,157.04,1e-05,2]
[395014697,1764330664438,157.04,1e-05,2]
[395014698,1764330665314,157.04,1.1e-05,2]
[395014699,1764330666424,157.04,1.1e-05,2]
[395014700,1764330668108,157.04,1.2e-05,2]
[395014701,1764330669180,157.04,1.2e-05,2]
[395014702,1764330670226,157.04,1.3e-05,2]
[395014703,1764330671973,157.04,1.3e-05,2]
[395014704,1764330672543,157.04,1.3e-05,2]
[395014705,1764330673627,157.04,1.4e-05,2]
[395014706,1764330674755,157.04,1.4e-05,2]
[395014707,1764330676125,157.04,1.5e-05,2]
[395014708,1764330677188,157.04,1.5e-05,2]
[395014709,1764330722868,157.03,1e-05,2]
[395014710,1764330723919,157.03,1e-05,2]
[395014711,1764330725042,157.03,1.1e-05,2]
[395014712,1764330726111,157.03,1.1e-05,2]
[395014713,1764330727214,157.03,1.2e-05,2]
[395014714,1764330728372,157.03,1.2e-05,2]
[395014715,1764330729525,157.03,1.3e-05,2]
[395014716,1764330731214,157.03,1.3e-05,2]
[395014717,1764330732401,157.03,1.3e-05,2]
[395014718,1764330733564,157.03,1.4e-05,2]
[395014719,1764330734638,157.03,1.4e-05,2]
[395014720,1764330735778,157.03,1.5e-05,2]
[395014721,1764330736837,157.03,1.5e-05,2]
[395014722,1764330782092,157.04,1e-05,2]
[395014723,1764330783166,157.04,1e-05,2]
[395014724,1764330784238,157.04,1.1e-05,2]
[395014725,1764330785337,157.04,1.1e-05,2]
[395014726,1764330786413,157.04,1.2e-05,2]
[395014727,1764330787509,157.04,1.2e-05,2]
[395014728,1764330789230,157.04,1.3e-05,2]
[395014729,1764330790632,157.04,1.3e-05,2]
[395014730,1764330791704,157.04,1.3e-05,2]
[395014731,1764330792815,157.04,1.4e-05,2]
[395014732,1764330794046,157.04,1.4e-05,2]
[395014733,1764330795164,157.04,1.5e-05,2]
[395014734,1764330796352,157.04,1.5e-05,2]
[395014735,1764330842214,157.04,1e-05,2]
[395014736,1764330843316,157.04,1e-05,2]
[395014737,1764330844391,157.04,1.1e-05,2]
[395014738,1764330845476,157.04,1.1e-05,2]
[395014739,1764330846544,157.04,1.2e-05,2]
[395014740,1764330847668,157.04,1.2e-05,2]
[395014741,1764330848739,157.04,1.3e-05,2]
[395014742,1764330851098,157.04,1.3e-05,2]
[395014743,1764330852204,157.04,1.3e-05,2]
[395014744,1764330853240,157.04,1.4e-05,2]
[395014745,1764330854370,157.04,1.4e-05,2]
[395014746,1764330855782,157.04,1.5e-05,2]
[395014747,1764330856877,157.04,1.5e-05,2]
[395014748,1764330902054,157.03,1e-05,2]
[395014749,1764330903390,157.03,1e-05,2]
[395014750,1764330904485,157.03,1.1e-05,2]
[395014751,1764330905586,157.03,1.1e-05,2]
[395014752,1764330907538,157.03,1.2e-05,2]
[395014753,1764330908389,157.03,1.2e-05,2]
[395014754,1764330909421,157.03,1.3e-05,2]
[395014755,1764330910494,157.03,1.3e-05,2]
[395014756,1764330911559,157.03,1.3e-05,2]
[395014757,1764330913556,157.03,1.4e-05,2]
[395014758,1764330914321,157.03,1.4e-05,2]
[395014759,1764330915373,157.03,1.5e-05,2]
[395014760,1764330916466,157.03,1.5e-05,2]
[395014761,1764330962078,157.04,1e-05,2]
[395014762,1764330963138,157.04,1e-05,2]
[395014763,1764330964258,157.04,1.1e-05,2]
[395014764,1764330966234,157.04,1.1e-05,2]
[395014765,1764330967871,157.04,1.2e-05,2]
[395014766,1764330968662,157.04,1.2e-05,2]
[395014767,1764330969745,157.04,1.3e-05,2]
[395014768,1764330971434,157.04,1.3e-05,2]
[395014769,1764330972498,157.04,1.3e-05,2]
[395014770,1764330973626,157.04,1.4e-05,2]
[395014771,1764330974706,157.04,1.4e-05,2]
[395014772,1764330976556,157.04,1.5e-05,2]
[395014773,1764330977631,157.04,1.5e-05,2]
[395014774,1764331022127,157.04,1e-05,2]
[395014775,1764331024113,157.04,1e-05,2]
[395014776,1764331025192,157.04,1.1e-05,2]
[395014777,1764331026458,157.04,1.1e-05,2]
[395014778,1764331027741,157.04,1.2e-05,2]
[395014779,1764331028747,157.04,1.2e-05,2]
[395014780,1764331029810,157.04,1.3e-05,2]
[395014781,1764331030878,157.04,1.3e-05,2]
[395014782,1764331031977,157.04,1.3e-05,2]
[395014783,1764331033051,157.04,1.4e-05,2]
[395014784,1764331034780,157.04,1.4e-05,2]
[395014785,1764331035903,157.04,1.5e-05,2]
[395014786,1764331037006,157.04,1.5e-05,2]
[395014787,1764331078538,550.0,0.0002,30]
[395014788,1764331082750,157.04,1e-05,2]
[395014789,1764331084484,157.04,1e-05,2]
[395014790,1764331085801,157.04,1.1e-05,2]
[395014791,1764331086619,157.04,1.1e-05,2]
[395014792,1764331087704,157.04,1.2e-05,2]
[395014793,1764331088786,157.04,1.2e-05,2]
[395014794,1764331090130,157.04,1.3e-05,2]
[395014795,1764331091180,157.04,1.3e-05,2]
[395014796,1764331095007,157.04,1.3e-05,2]
[395014797,1764331096757,157.04,1.4e-05,2]
[395014798,1764331098421,157.04,1.4e-05,2]
[395014799,1764331099477,157.04,1.5e-05,2]
[395014800,1764331100546,157.04,1.5e-05,2]
[395014801,1764331142204,157.03,1e-05,2]
[395014802,1764331143284,157.03,1e-05,2]
[395014803,1764331144382,157.03,1.1e-05,2]
[395014804,1764331145481,157.03,1.1e-05,2]
[395014805,1764331146565,157.03,1.2e-05,2]
[395014806,1764331147654,157.03,1.2e-05,2]
[395014807,1764331148742,157.03,1.3e-05,2]
[395014808,1764331149812,157.03,1.3e-05,2]
[395014809,1764331150969,157.03,1.3e-05,2]
[395014810,1764331152049,157.03,1.4e-05,2]
[395014811,1764331153160,157.03,1.4e-05,2]
[395014812,1764331155838,157.03,1.5e-05,2]
[395014813,1764331156757,157.03,1.5e-05,2]
[395014814,1764331202133,157.04,1e-05,2]
[395014815,1764331203857,157.04,1e-05,2]
[395014816,1764331204929,157.04,1.1e-05,2]
[395014817,1764331206051,157.04,1.1e-05,2]
[395014818,1764331207345,157.04,1.2e-05,2]
[395014819,1764331208460,157.04,1.2e-05,2]
[395014820,1764331209541,157.04,1.3e-05,2]
[395014821,1764331210945,157.04,1.3e-05,2]
[395014822,1764331211702,157.04,1.3e-05,2]
[395014823,1764331212794,157.04,1.4e-05,2]
[395014824,1764331214239,157.04,1.4e-05,2]
[395014825,1764331215314,157.04,1.5e-05,2]
[395014826,1764331216439,157.04,1.5e-05,2]
[395014827,1764331263388,157.04,1e-05,2]
[395014828,1764331264558,157.04,1e-05,2]
[395014829,1764331265687,157.04,1.1e-05,2]
[395014830,1764331266967,157.04,1.1e-05,2]
[395014831,1764331268083,157.04,1.2e-05,2]
[395014832,1764331269272,157.04,1.2e-05,2]
[395014833,1764331270442,157.04,1.3e-05,2]
[395014834,1764331271660,157.04,1.3e-05,2]
[395014835,1764331272589,157.04,1.3e-05,2]
[395014836,1764331273705,157.04,1.4e-05,2]
[395014837,1764331275054,157.04,1.4e-05,2]
[395014838,1764331276780,157.04,1.5e-05,2]
[395014839,1764331278163,157.04,1.5e-05,2]
[395014840,1764331322140,157.03,1e-05,2]
[395014841,1764331323240,157.03,1e-05,2]
[395014842,1764331324635,157.03,1.1e-05,2]
[395014843,1764331326398,157.03,1.1e-05,2]
[395014844,1764331327618,157.03,1.2e-05,2]
[395014845,1764331328826,157.03,1.2e-05,2]
[395014846,1764331329950,157.03,1.3e-05,2]
[395014847,1764331331154,157.03,1.3e-05,2]
[395014848,1764331332578,157.03,1.3e-05,2]
[395014849,1764331333338,157.03,1.4e-05,2]
[395014850,1764331334475,157.03,1.4e-05,2]
[395014851,1764331335561,157.03,1.5e-05,2]
[395014852,1764331336867,157.03,1.5e-05,2]
[395014853,1764331355885,155.338868,0.0002,30]
[395014854,1764331382255,157.04,1e-05,2]
[395014855,1764331383341,157.04,1e-05,2]
[395014856,1764331384511,157.04,1.1e-05,2]
[395014857,1764331385663,157.04,1.1e-05,2]
[395014858,1764331386982,157.04,1.2e-05,2]
[395014859,1764331387960,157.04,1.2e-05,2]
[395014860,1764331389030,157.04,1.3e-05,2]
[395014861,1764331390074,157.04,1.3e-05,2]
[395014862,1764331391211,157.04,1.3e-05,2]
[395014863,1764331392944,157.04,1.4e-05,2]
[395014864,1764331394116,157.04,1.4e-05,2]
[395014865,1764331395364,157.04,1.5e-05,2]
[395014866,1764331396437,157.04,1.5e-05,2]
[395014867,1764331442124,157.04,1e-05,2]
[395014868,1764331443215,157.04,1e-05,2]
[395014869,1764331444340,157.04,1.1e-05,2]
[395014870,1764331445495,157.04,1.1e-05,2]
[395014871,1764331446548,157.04,1.2e-05,2]
[395014872,1764331447629,157.04,1.2e-05,2]
[395014873,1764331448690,157.04,1.3e-05,2]
[395014874,1764331449731,157.04,1.3e-05,2]
[395014875,1764331451435,157.04,1.3e-05,2]
[395014876,1764331452495,157.04,1.4e-05,2]
[395014877,1764331453589,157.04,1.4e-05,2]
[395014878,1764331454837,106.62,1.5e-05,2]
[395014879,1764331454864,50.42,1.5e-05,2]
[395014880,1764331458252,157.0,1e-05,2]
[395014881,1764331502894,170.12,1e-05,2]
[395014882,1764331503247,170.12,1.1e-05,2]
[395014883,1764331504342,170.12,1.2e-05,2]
[395014884,1764331505433,170.12,1.3e-05,2]
[395014885,1764331506505,170.12,1.4e-05,2]
[395014886,1764331507578,170.12,1.5e-05,2]
[395014887,1764331562156,170.13,1e-05,2]
[395014888,1764331563262,170.13,1.1e-05,2]
[395014889,1764331564381,170.13,1.2e-05,2]
[395014890,1764331566121,170.13,1.3e-05,2]
[395014891,1764331567179,170.13,1.4e-05,2]
[395014892,1764331641934,179.07213376,0.00010959,7]
[395014934,1764331832671,-423.83664799,8.389e-05,2]
[395014937,1764331832683,-211.16335201,8.389e-05,2]
[395014939,1764331832691,-195.86735255,8.474e-05,2]
[395014943,1764331832726,-218.13264745,8.474e-05,2]
[395014945,1764331832735,-221.0,8.474e-05,2]
[395014947,1764331832744,-173.59176154,8.517e-05,2]
[395014949,1764331832753,-387.27559101,8.93e-05,2]
[395015005,1764331838623,-26.72440899,8.93e-05,2]
[395015007,1764331838633,-301.45262276,9.241e-05,2]
[395015009,1764331838643,-307.03070456,9.692e-05,2]
[395015011,1764331838652,-211.75045456,9.692e-05,2]
[395015013,1764331838661,-256.48884773,9.692e-05,2]
[395015015,1764331838669,-500.0,9.692e-05,2]
[395015017,1764331838678,-500.0,9.692e-05,2]
[395015019,1764331838687,-500.0,9.692e-05,2]
[395015021,1764331838697,-500.0,9.692e-05,2]
[395015023,1764331838706,-500.0,9.692e-05,2]
[395015025,1764331838715,-500.0,9.692e-05,2]
[395015027,1764331838725,-500.0,9.692e-05,2]
[395015029,1764331838734,-500.0,9.692e-05,2]
[395015031,1764331838743,-500.0,9.692e-05,2]
[395015033,1764331838753,-500.0,9.692e-05,2]
[395015034,1764331838763,-500.0,9.692e-05,2]
[395015036,1764331838772,-500.0,9.692e-05,2]
[395015038,1764331838781,-500.0,9.692e-05,2]
[395015040,1764331838796,-500.0,9.692e-05,2]
[395015042,1764331838806,-500.0,9.692e-05,2]
[395015044,1764331838816,-500.0,9.692e-05,2]
[395015047,1764331838826,-500.0,9.692e-05,2]
[395015049,1764331838838,-500.0,9.692e-05,2]
[395015051,1764331838848,-500.0,9.692e-05,2]
[395015052,1764331838858,-500.0,9.692e-05,2]
[395015054,1764331838868,-500.0,9.692e-05,2]
[395015056,1764331838878,-500.0,9.692e-05,2]
[395015059,1764331838888,-596.41256106,9.692e-05,2]
[395015061,1764331838898,-500.0,9.692e-05,2]
[395015063,1764331838908,-500.0,9.692e-05,2]
[395015064,1764331838918,-500.0,9.692e-05,2]
[395015067,1764331838928,-500.0,9.692e-05,2]
[395015069,1764331838938,-500.0,9.692e-05,2]
[395015070,1764331838948,-500.0,9.692e-05,2]
[395015073,1764331838958,-500.0,9.692e-05,2]
[395015075,1764331838967,-500.0,9.692e-05,2]
[395015077,1764331838977,-500.0,9.692e-05,2]
[395015079,1764331838987,-500.0,9.692e-05,2]
[395015080,1764331838997,-500.0,9.692e-05,2]
[395015082,1764331839007,-500.0,9.692e-05,2]
[395015084,1764331839017,-500.0,9.692e-05,2]
[395015087,1764331839028,-500.0,9.692e-05,2]
[395015088,1764331839038,-500.0,9.692e-05,2]
[395015090,1764331839047,-300.0,9.692e-05,2]
[395015092,1764331839057,-300.0,9.692e-05,2]
[395015094,1764331839068,-584.0,9.692e-05,2]
[395015096,1764331839079,-50000.0,9.693e-05,2]
[395015098,1764331839089,-200.0,9.7e-05,2]
[395015100,1764331839099,-166.22853765,9.7e-05,2]
[395015102,1764331839108,-500.0,9.7e-05,2]
[395015104,1764331839118,-500.53655465,9.8e-05,2]
[395015106,1764331839127,-501.60907205,9.8e-05,2]
[395015108,1764331839136,-500.0,9.85e-05,2]
[395015110,1764331839145,-429.49093559,9.85e-05,2]
[395015115,1764331839574,-218.97468358,9.85e-05,2]
[395015116,1764331839584,-500.0,9.85e-05,2]
[395015117,1764331839594,-7467.04913943,0.0001,2]
[395015118,1764331839605,-12532.95086057,0.0001,2]
[395015119,1764331839615,-19814.90591036,0.0001,2]
[395015120,1764331839626,-185.09408964,0.0001,2]
[395015121,1764331839635,-189.888827,0.0001,2]
[395015122,1764331839646,-524.87469203,0.0001,2]
[395015123,1764331839672,-286.0,0.0001,2]
[395015124,1764331839683,-388.79725575,0.0001,2]
[395015125,1764331839694,-1953.36593996,0.0001,2]
[395015130,1764331840745,-511.60544266,0.0001,2]
[395015132,1764331840806,-635.0,0.0001,2]
[395015133,1764331840830,-8348.77198319,0.0001,2]
[395015134,1764331840842,-451.59621594,0.0001,2]
[395015135,1764331840853,-5009.01328906,0.0001,2]
[395015141,1764331843810,-1391.99654078,0.0001,2]
[395015142,1764331843864,-3998.41259666,0.0001,2]
[395015143,1764331844027,-3097.4470297,0.0001,2]
[395015144,1764331844039,-378.38774052,0.0001,2]
[395015145,1764331844050,-464.996769,0.0001,2]
[395015146,1764331844062,-302.0,0.0001,2]
[395015156,1764331953455,157.567691,0.0002,30]
[395015157,1764332553971,157.567691,0.0002,30]
[395015171,1764333031779,-647.10234947,8.434e-05,2]
[395015172,1764333031788,-221.0,8.519e-05,2]
[395015173,1764333031798,-170.11992631,8.736e-05,2]
[395015176,1764333031808,-201.10234947,9.232e-05,2]
[395015179,1764333031817,-33158.340097,9.494e-05,2]
[395015183,1764333031826,-50000.0,9.591e-05,2]
[395015186,1764333031836,-500.0,9.591e-05,2]
[395015188,1764333031845,-500.0,9.591e-05,2]
[395015191,1764333031855,-500.0,9.591e-05,2]
[395015194,1764333031864,-500.0,9.591e-05,2]
[395015197,1764333031873,-500.0,9.591e-05,2]
[395015200,1764333031882,-500.0,9.591e-05,2]
[395015202,1764333031892,-500.0,9.591e-05,2]
[395015205,1764333031902,-500.0,9.591e-05,2]
[395015207,1764333031911,-500.0,9.591e-05,2]
[395015209,1764333031920,-409.64125611,9.591e-05,2]
[395015211,1764333031930,-500.0,9.591e-05,2]
[395015213,1764333031940,-500.0,9.591e-05,2]
[395015214,1764333031949,-500.0,9.591e-05,2]
[395015215,1764333031959,-500.0,9.591e-05,2]
[395015216,1764333031968,-500.0,9.591e-05,2]
[395015217,1764333031978,-500.0,9.591e-05,2]
[395015218,1764333031987,-500.0,9.591e-05,2]
[395015219,1764333031997,-500.0,9.591e-05,2]
[395015220,1764333032007,-166.22853765,9.591e-05,2]
[395015221,1764333032017,-414.0,9.78e-05,2]
[395015222,1764333032026,-1654.0,0.0001,2]
[395015223,1764333032036,-201.93286099,0.0001,2]
[395015224,1764333032045,-1956.32972241,0.00010387,2]
[395015225,1764333032055,-209.40437684,0.00010548,2]
[395015226,1764333032065,-200.74151304,0.00010736,2]
[395015227,1764333032075,-353.59244258,0.00010834,2]
[395015228,1764333032084,-160.0,0.00010834,2]
[395015229,1764333032094,-602.0640868,0.00010866,2]
[395015230,1764333032105,-999.0,0.00010959,2]
[395015231,1764333032119,-249.42190601,0.00010959,2]
[395015232,1764333032128,-217.15233878,0.00011096,2]
[395015233,1764333032139,-157.567691,0.00011599,2]
[395015234,1764333032148,-225.18697532,0.00011644,2]
[395015235,1764333032159,-301.6770173,0.00011688,2]
[395015236,1764333032169,-665.8222216,0.00011688,2]
[395015237,1764333032179,-12000.0,0.00012,2]
[395015238,1764333032189,-233.51889341,0.00012192,2]
[395015239,1764333032199,-631.23,0.00012329,2]
[395015240,1764333032208,-652.27,0.00012329,2]
[395015241,1764333032218,-543.56,0.00012329,2]
[395015242,1764333032228,-452.97,0.00012329,2]
[395015243,1764333032237,-377.47,0.00012329,2]
[395015244,1764333032247,-314.56,0.00012329,2]
[395015245,1764333032256,-262.13,0.00012329,2]
[395015246,1764333032265,-218.45,0.00012329,2]
[395015247,1764333032275,-182.04,0.00012329,2]
[395015248,1764333032284,-151.7,0.00012329,2]
[395015249,1764333032294,-758.51,0.00012329,2]
[395015250,1764333032303,-292.03274977,0.00012582,2]
[395015251,1764333032312,-231.36309978,0.00012736,2]
[395015252,1764333032321,-242.15909246,0.0001274,2]
[395015253,1764333032331,-251.11897888,0.00013288,2]
[395015254,1764333032340,-500.0,0.00013698,2]
[395015255,1764333032350,-1235.166644,0.00013699,2]
[395015256,1764333032359,-750.0,0.00013699,2]
[395015257,1764333032370,-1000.0,0.00013699,2]
[395015258,1764333032390,-500.0,0.00013699,2]
[395015259,1764333032401,-393.7129,0.00013699,2]
[395015260,1764333032412,-260.4103811,0.00013836,2]
[395015261,1764333032423,-500.0,0.00013973,2]
[395015262,1764333032435,-338.50149788,0.00014046,2]
[395015263,1764333032447,-157.567691,0.00014126,2]
[395015264,1764333032456,-500.0,0.00014247,2]
[395015265,1764333032467,-270.0455652,0.00014384,2]
[395015266,1764333032477,-511.1,0.00014521,2]
[395015267,1764333032487,-261.98468651,0.00014736,2]
[395015268,1764333032498,-500.0,0.00014794,2]
[395015269,1764333032508,-280.03725112,0.00014932,2]
[395015270,1764333032519,-12000.0,0.00015,2]
[395015271,1764333032529,-194.602643,0.00015068,2]
[395015272,1764333032539,-290.39862941,0.0001548,2]
[395015273,1764333032549,-500.0,0.0001589,2]
[395015274,1764333032559,-168.0,0.00015988,2]
[395015275,1764333032569,-301.1433787,0.00016028,2]
[395015276,1764333032579,-150.0,0.00016149,2]
[395015277,1764333032588,-168.0,0.00016349,2]
[395015278,1764333032597,-152.92,0.00016439,2]
[395015279,1764333032608,-168.0,0.00016528,2]
[395015280,1764333032618,-168.0,0.00016555,2]
[395015281,1764333032627,-163.606266,0.00016652,2]
[395015282,1764333032636,-157.567691,0.00016652,2]
[395015283,1764333032646,-292.60627325,0.00016736,2]
[395015284,1764333032656,-168.0,0.00016821,2]
[395015285,1764333032665,-150.0,0.00016918,2]
[395015286,1764333032675,-500.0,0.00016986,2]
[395015287,1764333032684,-151.0,0.00016986,2]
[395015288,1764333032693,-168.0,0.00017028,2]
[395015289,1764333032703,-151.0,0.0001726,2]
[395015290,1764333032713,-168.0,0.00017262,2]
[395015291,1764333032723,-168.0,0.00017442,2]
[395015292,1764333032733,-8000.0,0.000175,2]
[395015293,1764333032742,-151.0,0.00017534,2]
[395015294,1764333032751,-179.83814567,0.000176,2]
[395015295,1764333032761,-192.0890757,0.00017637,2]
[395015296,1764333032770,-192.0890757,0.00017637,2]
[395015297,1764333032780,-192.0890757,0.00017637,2]
[395015298,1764333032790,-192.0890757,0.00017637,2]
[395015299,1764333032799,-192.0890757,0.00017637,2]
[395015300,1764333032808,-192.0890757,0.00017637,2]
[395015301,1764333032817,-192.0890757,0.00017637,2]
[395015302,1764333032827,-192.0890757,0.00017637,2]
[395015303,1764333032836,-192.0890757,0.00017637,2]
[395015304,1764333032847,-192.0890757,0.00017637,2]
[395015305,1764333032857,-192.0890757,0.00017637,2]
[395015306,1764333032867,-192.0890757,0.00017637,2]
[395015307,1764333032876,-192.0890757,0.00017637,2]
[395015308,1764333032886,-192.0890757,0.00017637,2]
[395015309,1764333032895,-192.0890757,0.00017637,2]
[395015310,1764333032904,-192.0890757,0.00017637,2]
[395015311,1764333032914,-192.0890757,0.00017637,2]
[395015312,1764333032923,-192.0890757,0.00017637,2]
[395015313,1764333032931,-192.0890757,0.00017637,2]
[395015314,1764333032941,-192.0890757,0.00017637,2]
[395015315,1764333032950,-192.0890757,0.00017637,2]
[395015316,1764333032959,-192.0890757,0.00017637,2]
[395015317,1764333032968,-192.0890757,0.00017637,2]
[395015318,1764333032977,-192.0890757,0.00017637,2]
[395015319,1764333032987,-192.0890757,0.00017637,2]
[395015320,1764333032996,-192.0890757,0.00017637,2]
[395015321,1764333033006,-192.0890757,0.00017637,2]
[395015322,1764333033015,-192.0890757,0.00017637,2]
[395015323,1764333033024,-192.0890757,0.00017637,2]
[395015324,1764333033034,-192.0890757,0.00017637,2]
[395015325,1764333033047,-192.0890757,0.00017654,2]
[395015326,1764333033057,-384.1781514,0.00017654,2]
[395015327,1764333033067,-192.0890757,0.00017654,2]
[395015328,1764333033076,-192.0890757,0.00017654,2]
[395015329,1764333033085,-192.0890757,0.00017654,2]
[395015330,1764333033095,-192.0890757,0.00017654,2]
[395015331,1764333033104,-192.0890757,0.00017654,2]
[395015332,1764333033117,-192.0890757,0.00017654,2]
[395015333,1764333033127,-192.0890757,0.00017654,2]
[395015334,1764333033138,-192.0890757,0.00017654,2]
[395015335,1764333033147,-192.0890757,0.00017654,2]
[395015336,1764333033157,-192.0890757,0.00017654,2]
[395015337,1764333033167,-192.0890757,0.00017654,2]
[395015338,1764333033176,-219.2948256,0.00017654,2]
[395015339,1764333033186,-192.0890757,0.00017654,2]
[395015340,1764333033195,-150.0,0.00017687,2]
[395015341,1764333033205,-160.0,0.000177,2]
[395015342,1764333033215,-157.567691,0.000178,3]
[395015343,1764333033225,-1000.0,0.000178,2]
[395015344,1764333033235,-151.0,0.00017808,2]
[395015345,1764333033245,-151.0,0.00017808,2]
[395015346,1764333033254,-245.09170943,0.00017808,2]
[395015347,1764333033263,-342.0,0.00017891,2]
[395015348,1764333033272,-192.0890757,0.00017965,2]
[395015349,1764333033283,-192.0890757,0.00017965,2]
[395015350,1764333033294,-1422.117094,0.00018,2]
[395015351,1764333033305,-157.567691,0.00018025,3]
[395015352,1764333033315,-429.0,0.00018049,2]
[395015353,1764333033324,-500.0,0.00018082,2]
[395015354,1764333033333,-151.0,0.00018082,2]
[395015355,1764333033345,-260.0,0.00018248,2]
[395015356,1764333033355,-157.567691,0.0001825,3]
[395015357,1764333033365,-419.63582372,0.00018254,2]
[395015358,1764333033374,-900.0,0.00018356,7]
[395015359,1764333033384,-151.0,0.00018356,2]
[395015360,1764333033393,-163.606266,0.00018475,3]
[395015361,1764333033402,-157.567691,0.00018475,3]
[395015362,1764333033411,-1000.0,0.000185,2]
[395015363,1764333033420,-157.567691,0.00018517,7]
[395015364,1764333033430,-151.0,0.0001863,2]
[395015365,1764333033439,-157.567691,0.00018678,7]
[395015366,1764333033448,-163.606266,0.000187,3]
[395015367,1764333033457,-157.567691,0.000187,3]
[395015368,1764333033467,-323.22785999,0.00018736,2]
[395015369,1764333033476,-6338.24,0.0001878,3]
[395015370,1764333033486,-579.91191011,0.00018794,2]
[395015371,1764333033495,-360.0,0.00018796,2]
[395015372,1764333033505,-314.0350051,0.00018805,2]
[395015373,1764333033514,-196.6957342,0.00018805,2]
[395015374,1764333033523,-192.0890757,0.00018805,2]
[395015375,1764333033533,-192.0890757,0.00018805,2]
[395015376,1764333033542,-192.0890757,0.00018805,2]
[395015377,1764333033551,-163.606266,0.00018839,7]
[395015378,1764333033561,-157.567691,0.00018839,7]
[395015379,1764333033570,-38029.32,0.0001888,3]
[395015380,1764333033579,-353.59244258,0.0001888,3]
[395015381,1764333033588,-151.0,0.00018904,2]
[395015382,1764333033597,-163.606266,0.00019,7]
[395015383,1764333033607,-157.567691,0.00019,7]
[395015384,1764333033616,-1000.0,0.00019,2]
[395015385,1764333033625,-7968.11513195,0.00019078,2]
[395015386,1764333033635,-166.22853765,0.00019078,2]
[395015387,1764333033971,-10000.0,0.00019078,2]
[395015388,1764333033982,-500.0,0.00019173,2]
[395015389,1764333033991,-518.528011,0.00019173,2]
[395015390,1764333034000,-500.0,0.00019173,2]
[395015391,1764333034010,-202.77,0.00019177,2]
[395015392,1764333034019,-200.0,0.00019177,2]
[395015393,1764333034029,-500.0,0.00019178,2]
[395015394,1764333034038,-169.54076,0.00019178,2]
[395015395,1764333034048,-500.0,0.00019178,2]
[395015396,1764333034057,-500.0,0.00019178,2]
[395015397,1764333034067,-500.0,0.00019178,2]
[395015398,1764333034076,-500.0,0.00019178,2]
[395015399,1764333034086,-500.0,0.00019178,2]
[395015400,1764333034096,-500.0,0.00019178,2]